Workbook

Sheet Морозов
C3: №4 | L3: Сварка | M3: резка | N3: итог | O3: продажа
I4: 35842 | J4: 452.94 | L4: 15336.803 | M4: 3834.20075 | N4: 55013.00375 | O4: 74340
C5: Тип | D5: Наименование | E5: кол-во | F5: ед.изм. | G5: цена ед. | H5: масса ед. | I5: сумма | J5: вес
C6: Трубы | D6: Труба 530х8 ГОСТ 10705-91 | E6: 3 | G6: 7375 | H6: 103.1 | I6: 22125 | J6: 309.3 | K6: 530
C7: Днища | D7: Днище эллиптическое 530 | E7: 2 | G7: 2900 | H7: 25.9 | I7: 5800 | J7: 51.8
C8: Трубы | D8: Труба 159х4,5 ГОСТ 10704-91 | E8: 1.4 | G8: 750 | H8: 17.2 | I8: 1050 | J8: 24.08 | K8: 159
C9: Трубы | D9: Труба 133х4 ГОСТ 10704-91 | E9: 0.2 | G9: 565 | H9: 12.8 | I9: 113 | J9: 2.56 | K9: 133
C10: Фланцы | D10: Фланец 12820-80 Ду-150, Ру-1,6 МПа | E10: 7 | G10: 829 | H10: 8.3 | I10: 5803 | J10: 58.1
C11: Фланцы | D11: Фланец 12820-80 Ду-125, Ру-1,6 МПа | E11: 1 | G11: 915 | H11: 6.8 | I11: 915 | J11: 6.8
C12: Фитинг | D12: Фитинг стальной муфта 20 мм | E12: 3 | G12: 12 | H12: 0.1 | I12: 36 | J12: 0.3 | K12: 28
C15: №5 | L15: Сварка | M15: резка | N15: итог | O15: продажа
I16: 30426 | J16: 379.24 | L16: 15336.803 | M16: 3834.20075 | N16: 49597.00375 | O16: 67024
C17: Тип | D17: Наименование | E17: кол-во | F17: ед.изм. | G17: цена ед. | H17: масса ед. | I17: сумма | J17: вес
C18: Трубы | D18: Труба 530х8 ГОСТ 10705-91 | E18: 2.4 | G18: 7375 | H18: 103.1 | I18: 17700 | J18: 247.44 | K18: 530
C19: Днища | D19: Днище эллиптическое 530 | E19: 2 | G19: 2900 | H19: 25.9 | I19: 5800 | J19: 51.8
C20: Трубы | D20: Труба 159х4,5 ГОСТ 10704-91 | E20: 1.2 | G20: 750 | H20: 17.2 | I20: 900 | J20: 20.64 | K20: 159
C21: Трубы | D21: Труба 133х4 ГОСТ 10704-91 | E21: 0.2 | G21: 565 | H21: 12.8 | I21: 113 | J21: 2.56 | K21: 133
C22: Фланцы | D22: Фланец 12820-80 Ду-150, Ру-1,6 МПа | E22: 6 | G22: 829 | H22: 8.3 | I22: 4974 | J22: 49.8
C23: Фланцы | D23: Фланец 12820-80 Ду-125, Ру-1,6 МПа | E23: 1 | G23: 915 | H23: 6.8 | I23: 915 | J23: 6.8
C24: Фитинг | D24: Фитинг стальной муфта 20 мм | E24: 2 | G24: 12 | H24: 0.1 | I24: 24 | J24: 0.2 | K24: 28
C27: 7 | L27: Сварка | M27: резка | N27: итог | O27: продажа
I28: 33122.5 | J28: 418.95 | L28: 15336.803 | M28: 3834.20075 | N28: 52293.50375 | O28: 70682
C29: Тип | D29: Наименование | E29: кол-во | F29: ед.изм. | G29: цена ед. | H29: масса ед. | I29: сумма | J29: вес
C30: Трубы | D30: Труба 530х8 ГОСТ 10705-91 | E30: 2.9 | G30: 7375 | H30: 103.1 | I30: 21387.5 | J30: 298.99 | K30: 530
C31: Днища | D31: Днище эллиптическое 530 | E31: 2 | G31: 2900 | H31: 25.9 | I31: 5800 | J31: 51.8
C32: Трубы | D32: Труба 159х4,5 ГОСТ 10704-91 | E32: 1 | G32: 750 | H32: 17.2 | I32: 750 | J32: 17.2 | K32: 159
C33: Трубы | D33: Труба 133х4 ГОСТ 10704-91 | E33: 0.2 | G33: 565 | H33: 12.8 | I33: 113 | J33: 2.56 | K33: 133
C34: Фланцы | D34: Фланец 12820-80 Ду-150, Ру-1,6 МПа | E34: 5 | G34: 829 | H34: 8.3 | I34: 4145 | J34: 41.5
C35: Фланцы | D35: Фланец 12820-80 Ду-125, Ру-1,6 МПа | E35: 1 | G35: 915 | H35: 6.8 | I35: 915 | J35: 6.8
C36: Фитинг | D36: Фитинг стальной муфта 20 мм | E36: 1 | G36: 12 | H36: 0.1 | I36: 12 | J36: 0.1 | K36: 28
C41: 8 | L41: Сварка | M41: резка | N41: итог | O41: продажа
I42: 25684 | J42: 313.08 | L42: 15443.614 | M42: 3860.9035 | N42: 44988.5175 | O42: 60770
C43: Тип | D43: Наименование | E43: кол-во | F43: ед.изм. | G43: цена ед. | H43: масса ед. | I43: сумма | J43: вес
C44: Трубы | D44: Труба 530х8 ГОСТ 10705-91 | E44: 1.6 | G44: 7375 | H44: 103.1 | I44: 11800 | J44: 164.96 | K44: 530
C45: Днища | D45: Днище эллиптическое 530 | E45: 2 | G45: 2900 | H45: 25.9 | I45: 5800 | J45: 51.8
C46: Трубы | D46: Труба 159х4,5 ГОСТ 10704-91 | E46: 0.2 | G46: 750 | H46: 17.2 | I46: 150 | J46: 3.44 | K46: 159
C47: Трубы | D47: Труба 133х4 ГОСТ 10704-91 | E47: 0.2 | G47: 565 | H47: 12.8 | I47: 113 | J47: 2.56 | K47: 133
C48: Фланцы | D48: Фланец 12820-80 Ду-150, Ру-1,6 МПа | E48: 1 | G48: 829 | H48: 8.3 | I48: 829 | J48: 8.3
C49: Фланцы | D49: Фланец 12820-80 Ду-125, Ру-1,6 МПа | E49: 1 | G49: 915 | H49: 6.8 | I49: 915 | J49: 6.8
C50: Фитинг | D50: Фитинг стальной муфта 20 мм | E50: 1 | G50: 12 | H50: 0.1 | I50: 12 | J50: 0.1 | K50: 28
C51: Трубы | D51: Труба 108х3,5 ГОСТ 10704-91 | E51: 0.2 | G51: 400 | H51: 9.1 | I51: 80 | J51: 1.82 | K51: 108
C52: Трубы | D52: Труба 219х5 ГОСТ 10704-91 | E52: 0.8 | G52: 1320 | H52: 26.5 | I52: 1056 | J52: 21.2 | K52: 219
C53: Фланцы | D53: Фланец 12820-80 Ду-100, Ру-1,6 МПа | E53: 1 | G53: 545 | H53: 4.9 | I53: 545 | J53: 4.9
C54: Фланцы | D54: Фланец 12820-80 Ду-200, Ру-1,6 МПа | E54: 4 | G54: 1096 | H54: 11.8 | I54: 4384 | J54: 47.2
C57: 6 | L57: Сварка | M57: резка | N57: итог | O57: продажа
I58: 11712 | J58: 152.96 | L58: 10187.8845 | M58: 2546.971125 | N58: 24446.85563 | O58: 33040
C59: Тип | D59: Наименование | E59: кол-во | F59: ед.изм. | G59: цена ед. | H59: масса ед. | I59: сумма | J59: вес
C60: Трубы | D60: Труба 325х6 ГОСТ 10704-91 | E60: 1.6 | G60: 2750 | H60: 47.5 | I60: 4400 | J60: 76 | K60: 325
C61: Днища | D61: Днище эллиптическое 325 | E61: 2 | G61: 1000 | H61: 6.3 | I61: 2000 | J61: 12.6
C62: Трубы | D62: Труба 159х4,5 ГОСТ 10704-91 | E62: 0.8 | G62: 750 | H62: 17.2 | I62: 600 | J62: 13.76 | K62: 159
C63: Трубы | D63: Труба 219х5 ГОСТ 10704-91 | E63: 0.2 | G63: 1320 | H63: 26.5 | I63: 264 | J63: 5.3 | K63: 219
C64: Фланцы | D64: Фланец 12820-80 Ду-150, Ру-1,6 МПа | E64: 4 | G64: 829 | H64: 8.3 | I64: 3316 | J64: 33.2
C65: Фланцы | D65: Фланец 12820-80 Ду-200, Ру-1,6 МПа | E65: 1 | G65: 1096 | H65: 11.8 | I65: 1096 | J65: 11.8
C66: Фитинг | D66: Фитинг стальной муфта 20 мм | E66: 3 | G66: 12 | H66: 0.1 | I66: 36 | J66: 0.3 | K66: 28
C69: В-1 | L69: Сварка | M69: резка | N69: итог | O69: продажа
I70: 1625.75 | J70: 19.225 | L70: 1803.221 | M70: 450.80525 | N70: 3879.77625 | O70: 5310
C71: Тип | D71: Наименование | E71: кол-во | F71: ед.изм. | G71: цена ед. | H71: масса ед. | I71: сумма | J71: вес
C72: Трубы | D72: Труба 273х5 ГОСТ 10704-91 | E72: 0.25 | G72: 1625 | H72: 33.1 | I72: 406.25 | J72: 8.275 | K72: 273
C73: Днища | D73: Днище эллиптическое 273 | E73: 2 | G73: 570 | H73: 4.6 | I73: 1140 | J73: 9.2
C74: Трубы | D74: Труба 76х3 ГОСТ 10704-91 | E74: 0.3 | G74: 225 | H74: 5.5 | I74: 67.5 | J74: 1.65 | K74: 76
C75: Фитинг | D75: Фитинг стальной муфта 20 мм | E75: 1 | G75: 12 | H75: 0.1 | I75: 12 | J75: 0.1 | K75: 28
C78: В-2 | L78: Сварка | M78: резка | N78: итог | O78: продажа
I79: 6740 | J79: 67.82 | L79: 2745.671 | M79: 686.41775 | N79: 10172.08875 | O79: 13806
C80: Тип | D80: Наименование | E80: кол-во | F80: ед.изм. | G80: цена ед. | H80: масса ед. | I80: сумма | J80: вес
C81: Трубы | D81: Труба 426х6 ГОСТ 10705-91 | E81: 0.4 | G81: 5125 | H81: 82.6 | I81: 2050 | J81: 33.04 | K81: 426
C82: Днища | D82: Днище эллиптическое 426 | E82: 2 | G82: 2190 | H82: 13.9 | I82: 4380 | J82: 27.8
C83: Трубы | D83: Труба 159х4,5 ГОСТ 10704-91 | E83: 0.4 | G83: 750 | H83: 17.2 | I83: 300 | J83: 6.88 | K83: 159
C84: Фитинг | D84: Фитинг стальной муфта 15 мм | E84: 1 | G84: 10 | H84: 0.1 | I84: 10 | J84: 0.1 | K84: 22

Sheet таблица
A2: 7 | J2: Сварка | K2: резка | L2: итог | M2: +% | N2: продажа | P2: Работа
A3: 32 | G3: =SUM($G$5:INDEX($G5:$G35,COUNTA($G5:$G35))) -> 6784 | H3: =SUM($H$5:INDEX($H5:$H35,COUNTA($H5:$H35))) -> 148.35 | J3: =SUMPRODUCT(I5:I35,J5:J35*PI()) -> 4357.389011 | K3: =J3/4 -> 1089.347253 | L3: =G3+J3+K3 -> 12230.73626 | M3: 30 | N3: =ROUNDUP((L3*(1+$M$3/100))/1.18,-2)*1.18 -> 15930 | P3: =(J3+K3)/1000 -> 5.446736263
A4: Тип | B4: Наименование | C4: кол-во | D4: ед.изм. | E4: цена ед. | F4: масса ед. | G4: сумма | H4: вес | I4: по сварке | J4: кол-во швов
A5: Трубы | B5: Труба 159х4,5 ГОСТ 10704-91 | C5: 1.2 | E5: =IFERROR(INDEX(база,MATCH($B5,назв,0),2),"") -> 750 | F5: =IFERROR(INDEX(база,MATCH($B5,назв,0),3),"") -> 17.2 | G5: =IFERROR(C5*E5,"") -> 900 | H5: =IFERROR(C5*F5,"") -> 20.64 | I5: =IF(C5<>"",IFERROR(INDEX(база!$B$29:$E$124,MATCH(B5,база!$B$29:$B$124,0),4),0),"") -> 159 | J5: 5
A6: Днища | B6: Заглушка 159х4,5 | C6: 2 | E6: 185 | F6: 1.5 | G6: =IFERROR(C6*E6,"") -> 370 | H6: =IFERROR(C6*F6,"") -> 3 | I6: =IF(C6<>"",IFERROR(INDEX(база!$B$29:$E$124,MATCH(B6,база!$B$29:$B$124,0),4),0),"") -> 0
A7: Трубы | B7: Труба 133х4 ГОСТ 10704-91 | C7: 9 | E7: 565 | F7: 12.8 | G7: 5085 | H7: 115.2 | I7: =IF(C7<>"",IFERROR(INDEX(база!$B$29:$E$124,MATCH(B7,база!$B$29:$B$124,0),4),0),"") -> 133 | J7: 4
A8: Трубы | B8: Труба 15 ВГП | C8: 0.6 | E8: 40 | F8: 0.85 | G8: =IFERROR(C8*E8,"") -> 24 | H8: =IFERROR(C8*F8,"") -> 0.51 | I8: =IF(C8<>"",IFERROR(INDEX(база!$B$29:$E$124,MATCH(B8,база!$B$29:$B$124,0),4),0),"") -> 20 | J8: 3
A9: Лист стальной | B9: Лист стальной 6 мм | C9: 5 | E9: 45 | F9: 1 | G9: 225 | H9: 5 | I9: =IF(C9<>"",IFERROR(INDEX(база!$B$29:$E$124,MATCH(B9,база!$B$29:$B$124,0),4),0),"") -> 0
A10: Лист стальной | B10: Лист стальной 6 мм | C10: 4 | E10: 45 | F10: 1 | G10: 180 | H10: 4 | I10: =IF(C10<>"",IFERROR(INDEX(база!$B$29:$E$124,MATCH(B10,база!$B$29:$B$124,0),4),0),"") -> 0
I11: =IF(C11<>"",IFERROR(INDEX(база!$B$29:$E$124,MATCH(B11,база!$B$29:$B$124,0),4),0),"") -> 
I12: =IF(C12<>"",IFERROR(INDEX(база!$B$29:$E$124,MATCH(B12,база!$B$29:$B$124,0),4),0),"") -> 
I13: =IF(C13<>"",IFERROR(INDEX(база!$B$29:$E$124,MATCH(B13,база!$B$29:$B$124,0),4),0),"") -> 
I14: =IF(C14<>"",IFERROR(INDEX(база!$B$29:$E$124,MATCH(B14,база!$B$29:$B$124,0),4),0),"") -> 
I15: =IF(C15<>"",IFERROR(INDEX(база!$B$29:$E$124,MATCH(B15,база!$B$29:$B$124,0),4),0),"") -> 
I16: =IF(C16<>"",IFERROR(INDEX(база!$B$29:$E$124,MATCH(B16,база!$B$29:$B$124,0),4),0),"") -> 
I17: =IF(C17<>"",IFERROR(INDEX(база!$B$29:$E$124,MATCH(B17,база!$B$29:$B$124,0),4),0),"") ->  | L17: секций | M17: швов
I18: =IF(C18<>"",IFERROR(INDEX(база!$B$29:$E$124,MATCH(B18,база!$B$29:$B$124,0),4),0),"") ->  | L18: 6 | M18: =(L18-1)*3+2 -> 17
I19: =IF(C19<>"",IFERROR(INDEX(база!$B$29:$E$124,MATCH(B19,база!$B$29:$B$124,0),4),0),"") -> 
I20: =IF(C20<>"",IFERROR(INDEX(база!$B$29:$E$124,MATCH(B20,база!$B$29:$B$124,0),4),0),"") -> 
I21: =IF(C21<>"",IFERROR(INDEX(база!$B$29:$E$124,MATCH(B21,база!$B$29:$B$124,0),4),0),"") -> 
I22: =IF(C22<>"",IFERROR(INDEX(база!$B$29:$E$124,MATCH(B22,база!$B$29:$B$124,0),4),0),"") -> 
I23: =IF(C23<>"",IFERROR(INDEX(база!$B$29:$E$124,MATCH(B23,база!$B$29:$B$124,0),4),0),"") -> 
I24: =IF(C24<>"",IFERROR(INDEX(база!$B$29:$E$124,MATCH(B24,база!$B$29:$B$124,0),4),0),"") -> 
I25: =IF(C25<>"",IFERROR(INDEX(база!$B$29:$E$124,MATCH(B25,база!$B$29:$B$124,0),4),0),"") -> 
I26: =IF(C26<>"",IFERROR(INDEX(база!$B$29:$E$124,MATCH(B26,база!$B$29:$B$124,0),4),0),"") -> 
I27: =IF(C27<>"",IFERROR(INDEX(база!$B$29:$E$124,MATCH(B27,база!$B$29:$B$124,0),4),0),"") -> 
I28: =IF(C28<>"",IFERROR(INDEX(база!$B$29:$E$124,MATCH(B28,база!$B$29:$B$124,0),4),0),"") -> 
I29: =IF(C29<>"",IFERROR(INDEX(база!$B$29:$E$124,MATCH(B29,база!$B$29:$B$124,0),4),0),"") -> 
I30: =IF(C30<>"",IFERROR(INDEX(база!$B$29:$E$124,MATCH(B30,база!$B$29:$B$124,0),4),0),"") -> 
I31: =IF(C31<>"",IFERROR(INDEX(база!$B$29:$E$124,MATCH(B31,база!$B$29:$B$124,0),4),0),"") -> 
I32: =IF(C32<>"",IFERROR(INDEX(база!$B$29:$E$124,MATCH(B32,база!$B$29:$B$124,0),4),0),"") -> 
I33: =IF(C33<>"",IFERROR(INDEX(база!$B$29:$E$124,MATCH(B33,база!$B$29:$B$124,0),4),0),"") -> 
I34: =IF(C34<>"",IFERROR(INDEX(база!$B$29:$E$124,MATCH(B34,база!$B$29:$B$124,0),4),0),"") -> 
I35: =IF(C35<>"",IFERROR(INDEX(база!$B$29:$E$124,MATCH(B35,база!$B$29:$B$124,0),4),0),"") -> 

Sheet база
B1: Наименование | C1: цена | D1: масса
B2: Днище эллиптическое 57 | C2: 37 | D2: 0.6
B3: Днище эллиптическое 76 | C3: 54 | D3: 0.7
B4: Днище эллиптическое 89 | C4: 70 | D4: 0.9
B5: Днище эллиптическое 108 | C5: 85 | D5: 1
B6: Днище эллиптическое 133 | C6: 110 | D6: 1.1
B7: Днище эллиптическое 159 | C7: 185 | D7: 1.5
B8: Днище эллиптическое 219 | C8: 360 | D8: 3.1
B9: Днище эллиптическое 273 | C9: 570 | D9: 4.6
B10: Днище эллиптическое 325 | C10: 1000 | D10: 6.3
B11: Днище эллиптическое 373 | C11: 1630 | D11: 11
B12: Днище эллиптическое 426 | C12: 2190 | D12: 13.9
B13: Днище эллиптическое 530 | C13: 2900 | D13: 25.9
B14: Днище эллиптическое 630 | C14: 9550 | D14: 36.4
B15: Днище эллиптическое 820 | C15: 16000 | D15: 60.6
B16: Заглушка 57х3 | C16: 37 | D16: 0.6
B17: Заглушка 76х3 | C17: 54 | D17: 0.7
B18: Заглушка 89х3,5 | C18: 70 | D18: 0.9
B19: Заглушка 108х3,5 | C19: 85 | D19: 1
B20: Заглушка 133х4 | C20: 110 | D20: 1.1
B21: Заглушка 159х4,5 | C21: 185 | D21: 1.5
B22: Заглушка 219х5 | C22: 360 | D22: 3.1
B23: Заглушка 273х6 | C23: 570 | D23: 4.6
B24: Заглушка 325х6 | C24: 1000 | D24: 6.3
B25: Заглушка 426х8 | C25: 2190 | D25: 13.9
B26: Заглушка 530х8 | C26: 2900 | D26: 25.9
B27: Заглушка 630х10 | C27: 9550 | D27: 36.4
B28: Днище 820x10 | C28: 16000 | D28: 60.6
B29: Труба 15 ВГП | C29: 40 | D29: 0.85 | E29: 20
B30: Труба 20 ВГП | C30: 65 | D30: 1.3 | E30: 28
B31: Труба 25 ВГП | C31: 75 | D31: 1.7 | E31: 32
B32: Труба 32 ВГП | C32: 100 | D32: 2.2 | E32: 38
B33: Труба 40 ВГП | C33: 125 | D33: 2.8 | E33: 48
B34: Труба 57х3 ГОСТ 10704-91 | C34: 165 | D34: 4 | E34: 57
B35: Труба 76х3 ГОСТ 10704-91 | C35: 225 | D35: 5.5 | E35: 76
B36: Труба 89х3 ГОСТ 10704-91 | C36: 300 | D36: 7.4 | E36: 89
B37: Труба 108х3,5 ГОСТ 10704-91 | C37: 400 | D37: 9.1 | E37: 108
B38: Труба 133х4 ГОСТ 10704-91 | C38: 565 | D38: 12.8 | E38: 133
B39: Труба 159х4,5 ГОСТ 10704-91 | C39: 750 | D39: 17.2 | E39: 159
B40: Труба 219х5 ГОСТ 10704-91 | C40: 1320 | D40: 26.5 | E40: 219 | J40: 10704-91, 10705-91 | K40: 57х3 | L40: 3 | M40: 4 | N40: =O40*M40 -> 128 | O40: 32
B41: Труба 273х5 ГОСТ 10704-91 | C41: 1625 | D41: 33.1 | E41: 273 | J41: 10704-91, 10705-91 | K41: 76х3 | L41: 3 | M41: 5.45 | N41: =O41*M41 -> 174.4 | O41: 32
B42: Труба 325х6 ГОСТ 10704-91 | C42: 2750 | D42: 47.5 | E42: 325 | J42: 10704-91, 10705-91 | K42: 89х3,5 | L42: 3.5 | M42: 7.4 | N42: 236.8 | O42: 32
B43: Труба 377х6 ГОСТ 10704-91 | C43: 5125 | D43: 82.6 | E43: 377 | J43: 10704-91, 10705-91 | K43: 108х3,5 | L43: 3.5 | M43: 9.1 | N43: 318.5 | O43: 35
B44: Труба 426х6 ГОСТ 10705-91 | C44: 5125 | D44: 82.6 | E44: 426 | J44: 10704-91, 10705-91 | K44: 133х4 | L44: 4 | M44: 12.75 | N44: 446.25 | O44: 35
B45: Труба 530х8 ГОСТ 10705-91 | C45: 7375 | D45: 103.1 | E45: 530 | J45: 10704-91, 10705-91 | K45: 159х4,5 | L45: 4.5 | M45: 17.2 | N45: 602 | O45: 35
B46: Труба 630х10 ГОСТ 10705-92 | C46: 13125 | D46: 153.1 | E46: 630 | J46: 10704-91, 10705-91 | K46: 219х5 | L46: 5 | M46: 26.5 | N46: 1033.5 | O46: 39
B47: Труба 820х10 | C47: 20625 | D47: 199.9 | E47: 820 | J47: 10704-91, 10705-91 | K47: 273х5 | L47: 5 | M47: 33.1 | N47: 1290.9 | O47: 39
B48: Фланец 12820-80 Ду-15, Ру-1,6 МПа | C48: 87 | D48: 0.7 | J48: 10704-91, 10705-91 | K48: 325х6 | L48: 6 | M48: 47.5 | N48: 2137.5 | O48: 45
B49: Фланец 12820-80 Ду-20, Ру-1,6 МПа | C49: 104 | D49: 0.9 | J49: 10704-91, 10705-91 | K49: 426х8 | L49: 8 | M49: 82.6 | N49: 4047.4 | O49: 49
B50: Фланец 12820-80 Ду-25, Ру-1,6 МПа | C50: 142 | D50: 1.1 | J50: 10704-91, 10705-91 | K50: 530х8 | L50: 8 | M50: 103.1 | N50: 5876.7 | O50: 57
B51: Фланец 12820-80 Ду-32, Ру-1,6 МПа | C51: 191 | D51: 1.6 | J51: 10704-91, 10705-91 | K51: 630х10 | L51: 10 | M51: 153.1 | N51: 10410.8 | O51: 68
B52: Фланец 12820-80 Ду-40, Ру-1,6 МПа | C52: 238 | D52: 1.9
B53: Фланец 12820-80 Ду-50, Ру-1,6 МПа | C53: 286 | D53: 2.3 | E53: 57
B54: Фланец 12820-80 Ду-65, Ру-1,6 МПа | C54: 379 | D54: 3.2 | E54: 76 | L54: кол-во | N54: цена ед. | O54: масса ед.
B55: Фланец 12820-80 Ду-80, Ру-1,6 МПа | C55: 427 | D55: 4.3 | E55: 89
B56: Фланец 12820-80 Ду-100, Ру-1,6 МПа | C56: 545 | D56: 4.9 | E56: 108 | K56: Труба профильная 30х20х2 | L56: 1 | M56: п.м. | N56: 45 | O56: 1.45
B57: Фланец 12820-80 Ду-125, Ру-1,6 МПа | C57: 915 | D57: 6.8 | E57: 133 | K57: Труба профильная 40х40х2 | L57: 1 | M57: п.м. | N57: 75 | O57: 2.4
B58: Фланец 12820-80 Ду-150, Ру-1,6 МПа | C58: 829 | D58: 8.3 | E58: 159 | K58: Труба профильная 50х50х2 | L58: 1 | M58: п.м. | N58: 95 | O58: 3.02
B59: Фланец 12820-80 Ду-200, Ру-1,6 МПа | C59: 1096 | D59: 11.8 | E59: 219 | K59: Труба профильная 60х60х2 | L59: 1 | M59: п.м. | N59: 115 | O59: 3.65
B60: Фланец 12820-80 Ду-250, Ру-1,6 МПа | C60: 1628 | D60: 17.4 | E60: 273 | K60: Труба профильная 80х80х3 | L60: 1 | M60: п.м. | N60: 230 | O60: 7.27
B61: Фланец 12820-80 Ду-300, Ру-1,6 МПа | C61: 2052 | D61: 22.8 | E61: 325 | K61: Труба профильная 100х100х3 | L61: 1 | M61: п.м. | N61: 285 | O61: 9.16
B62: Фланец 12820-80 Ду-350, Ру-1,6 МПа | C62: 2785 | D62: 32.1 | E62: 373
B63: Фланец 12820-80 Ду-400, Ру-1,6 МПа | C63: 3670 | D63: 43 | E63: 426
B64: Фланец 12820-80 Ду-500, Ру-1,6 МПа | C64: 6350 | D64: 71 | E64: 530
B65: Фланец 12820-80 Ду-600, Ру-1,6 МПа | C65: 8900 | D65: 99.3
B66: Фланец 12820-80 Ду-800, Ру-1,6 МПа | C66: 15250 | D66: 130.6
B67: Фланец 12820-80 Ду-900, Ру-1,6 МПа | C67: 16360
B68: Фланец 12820-80 Ду-1000, Ру-1,6 МПа | C68: 26225
B69: Фланец 12820-80 Ду-15, Ру-2,5 МПа | C69: 115
B70: Фланец 12820-80 Ду-20, Ру-2,5 МПа | C70: 125
B71: Фланец 12820-80 Ду-25, Ру-2,5 МПа | C71: 145
B72: Фланец 12820-80 Ду-32, Ру-2,5 МПа | C72: 220
B73: Фланец 12820-80 Ду-40, Ру-2,5 МПа | C73: 275
B74: Фланец 12820-80 Ду-50, Ру-2,5 МПа | C74: 290
B75: Фланец 12820-80 Ду-65, Ру-2,5 МПа | C75: 360
B76: Фланец 12820-80 Ду-80, Ру-2,5 МПа | C76: 435
B77: Фланец 12820-80 Ду-100, Ру-2,5 МПа | C77: 620
B78: Фланец 12820-80 Ду-125, Ру-2,5 МПа | C78: 900
B79: Фланец 12820-80 Ду-150, Ру-2,5 МПа | C79: 1100
B80: Фланец 12820-80 Ду-200, Ру-2,5 МПа | C80: 1653
B81: Фланец 12820-80 Ду-250, Ру-2,5 МПа | C81: 2600
B82: Фланец 12820-80 Ду-300, Ру-2,5 МПа | C82: 2750
B83: Фланец 12820-80 Ду-350, Ру-2,5 МПа | C83: 4425
B84: Фланец 12820-80 Ду-400, Ру-2,5 МПа | C84: 5700
B85: Фланец 12820-80 Ду-500, Ру-2,5 МПа | C85: 8550
B86: Фланец 12820-80 Ду-600, Ру-2,5 МПа | C86: 11700
B87: Фланец 12820-80 Ду-800, Ру-2,5 МПа | C87: 25950
B88: Заглушка АТК Ду-15, Ру-1,6 МПа | C88: 68 | D88: 1.4
B89: Заглушка АТК Ду-20, Ру-1,6 МПа | C89: 85 | D89: 1.5
B90: Заглушка АТК Ду-25, Ру-1,6 МПа | C90: 102 | D90: 1.6
B91: Заглушка АТК Ду-32, Ру-1,6 МПа | C91: 135 | D91: 1.7
B92: Заглушка АТК Ду-40, Ру-1,6 МПа | C92: 180 | D92: 1.8
B93: Заглушка АТК Ду-50, Ру-1,6 МПа | C93: 225 | D93: 2
B94: Заглушка АТК Ду-65, Ру-1,6 МПа | C94: 282 | D94: 2.5
B95: Заглушка АТК Ду-80, Ру-1,6 МПа | C95: 338 | D95: 3
B96: Заглушка АТК Ду-100, Ру-1,6 МПа | C96: 428 | D96: 3.6
B97: Заглушка АТК Ду-125, Ру-1,6 МПа | C97: 597 | D97: 4.8
B98: Заглушка АТК Ду-150, Ру-1,6 МПа | C98: 855 | D98: 7.1
B99: Заглушка АТК Ду-200, Ру-1,6 МПа | C99: 1395 | D99: 10.4
B100: Заглушка АТК Ду-250, Ру-1,6 МПа | C100: 2453 | D100: 19
B101: Заглушка АТК Ду-300, Ру-1,6 МПа | C101: 3679 | D101: 26.4
B102: Заглушка АТК Ду-350, Ру-1,6 МПа | C102: 5378 | D102: 37.3
B103: Заглушка АТК Ду-400, Ру-1,6 МПа | C103: 7099 | D103: 54.3
B104: Заглушка АТК Ду-500, Ру-1,6 МПа | C104: 12516 | D104: 99.2
B105: Заглушка АТК Ду-200, Ру-2,5 МПа | C105: 2250 | D105: 16.2
B106: Заглушка АТК Ду-300, Ру-2,5 МПа | C106: 4500 | D106: 36.8
B107: Заглушка АТК Ду-600, Ру-1,6 МПа | C107: 19800 | D107: 152.2
B108: Заглушка АТК Ду-800, Ру-1,6 МПа | D108: 294.2
B109: Лист стальной 4 мм | C109: 45 | D109: 1
B110: Лист стальной 6 мм | C110: 45 | D110: 1
B111: Лист стальной 14 мм | C111: 45 | D111: 1
B112: Лист стальной 20 мм | C112: 45 | D112: 1
B113: Фитинг стальной муфта 15 мм | C113: 10 | D113: 0.1 | E113: 20
B114: Фитинг стальной муфта 20 мм | C114: 12 | D114: 0.1 | E114: 25
B115: Фитинг стальной муфта 25 мм | C115: 25 | D115: 0.15 | E115: 32
B116: Фитинг стальной муфта 32 мм | C116: 33 | D116: 0.2 | E116: 40
B117: Фитинг стальной муфта 40 мм | C117: 45 | D117: 0.25 | E117: 50
B118: Фитинг стальной муфта 50 мм | C118: 60 | D118: 0.3 | E118: 55
B119: Фитинг стальной резьба 15 мм | C119: 7 | D119: 0.1 | E119: 17
B120: Фитинг стальной резьба 20 мм | C120: 10 | D120: 0.1 | E120: 22
B121: Фитинг стальной резьба 25 мм | C121: 20 | D121: 0.15 | E121: 28
B122: Фитинг стальной резьба 32 мм | C122: 25 | D122: 0.2 | E122: 37
B123: Фитинг стальной резьба 40 мм | C123: 35 | D123: 0.25 | E123: 46
B124: Фитинг стальной резьба 50 мм | C124: 50 | D124: 0.3 | E124: 55
B125: Фитинг стальной пробка 32 мм | C125: 50 | D125: 0.2
B126: Сетка нж 0,4 | C126: 3000 | D126: 0.8
B127: Сетка нж 1,0 | C127: 2500 | D127: 1
B128: Сетка нж 1,6 | C128: 2000 | D128: 1.5
B129: Сетка нж 2,0 | C129: 2000 | D129: 2
B130: Сетка нж 5,0 | C130: 4000 | D130: 3
B131: Диск 40 | C131: 10 | D131: 0.05
B132: Диск 50 | C132: 15 | D132: 0.08
B133: Диск 65 | C133: 20 | D133: 0.15
B134: Диск 80 | C134: 25 | D134: 0.2
B135: Диск 100 | C135: 33 | D135: 0.31
B136: Диск 125 | C136: 38 | D136: 0.48
B137: Диск 150 | C137: 50 | D137: 0.69
B138: Диск 200 | C138: 170 | D138: 2.11
B139: Диск 300 | C139: 500 | D139: 4
B140: Диск 400
B141: Диск 500
B142: Диск 204
B143: Диск 205
B145: Кольцо 40 | C145: 38 | D145: 0.2
B146: Кольцо 50 | C146: 50 | D146: 0.32
B147: Кольцо 65 | C147: 58 | D147: 0.4
B148: Кольцо 80 | C148: 75 | D148: 0.53
B149: Кольцо 100 | C149: 87 | D149: 0.7
B150: Кольцо 125 | C150: 97 | D150: 0.87
B151: Кольцо 150 | C151: 200 | D151: 1.43
B152: Кольцо 200 | C152: 250 | D152: 3.04
B153: Диск 250 | C153: 250 | D153: 2.74
B154: Кольцо 250 | C154: 550 | D154: 3.92
B155: Диск 300 | C155: 300 | D155: 3.88
B156: Кольцо 300 | C156: 700 | D156: 5.42
B157: Диск 400 | C157: 500 | D157: 6.66
B158: Кольцо 400 | C158: 1100 | D158: 6.8
B159: Диск 500 | C159: 800 | D159: 10.32
B160: Кольцо 500 | C160: 1550 | D160: 8.23
B161: Диск 600 | C161: 1200 | D161: 23
B162: Пятка | C162: 70 | D162: 0.5
B163: Проушина | C163: 100 | D163: 0.8
B164: Штанга ФМ | C164: 85 | D164: 0.6
B165: Проушина ФМ | C165: 40 | D165: 0.2
B166: Магнит 25х150 | C166: 2500 | D166: 0.8
B167: Переход стальной 20х15 | C167: 21.5
B168: Переход стальной 25х15 | C168: 30.7
B169: Переход стальной 25х20 | C169: 22.8
B170: Переход стальной 32х15 | C170: 35.7
B171: Переход стальной 32х20 | C171: 27
B172: Переход стальной 40х20 | C172: 39
B173: Переход стальной 40х25 | C173: 35.1
B174: Переход стальной 40х32 | C174: 35.1
B175: Переход стальной 32х2-25х1,6 | C175: 14.5
B176: Переход стальной 38х3-25х2 | C176: 15.8
B177: Переход стальной 38х3-32х2 | C177: 15.8
B178: Переход стальной 45х2,5-25х1,6 | C178: 15.6
B179: Переход стальной 45х2,5-32(38)х2 | C179: 16.3
B180: Переход стальной 57х3-25х1,6 | C180: 22.4
B181: Переход стальной 57х3-32(38)х2 | C181: 22.4
B182: Переход стальной 57х3-45х2,5 | C182: 23
B183: Переход стальной 76х3,5-38х2,5 | C183: 32.6
B184: Переход стальной 76х3,5-45х2,5 | C184: 32.1
B185: Переход стальной 76х3,5-57х3 | C185: 32
B186: Переход стальной 89х3,5-45х2,5 | C186: 44
B187: Переход стальной 89х3,5-57х3 | C187: 43
B188: Переход стальной 89х3,5-76х3,5 | C188: 36
B189: Переход стальной 108х4-57х3 | C189: 72
B190: Переход стальной 108х4-76х3,5 | C190: 59
B191: Переход стальной 108х4-89х3,5 | C191: 80
B192: Переход стальной 114х4-76х3,5 | C192: 74-00
B193: Переход стальной 133х4-57х3 | C193: 107-00
B194: Переход стальной 133х5-76х3,5 | C194: 130
B195: Переход стальной 133х5-89х3,5 | C195: 107-00
B196: Переход стальной 133х5-108х4 | C196: 106-00
B197: Переход стальной 159х4,5-57х3 | C197: 161-00
B198: Переход стальной 159х4,5-76х3,5 | C198: 153-00
B199: Переход стальной 159х4,5-89х3,5 | C199: 153
B200: Переход стальной 159х4,5-108х4 | C200: 153
B201: Переход стальной 159х4,5-133х4 | C201: 138
... 97 more rows

Sheet списки
A1: Тип | B1: =INDIRECT(ADDRESS(ROW($A$1)-COLUMN($A$1)+COLUMN(),1)) -> Трубы | C1: =INDIRECT(ADDRESS(ROW($A$1)-COLUMN($A$1)+COLUMN(),1)) -> Днища | D1: Фланцы | E1: Крепеж | F1: Прокладки | G1: АТК | H1: Лист стальной | I1: Переход | J1: Отвод | K1: Фитинг | L1: Сетка | M1: Диски | N1: Кольца | O1: Прочее | P1: 0 | Q1: 0 | R1: 0 | S1: 0 | T1: 0 | U1: 0 | V1: 0 | W1: 0 | X1: 0 | Y1: 0 | Z1: 0 | AA1: 0 | AB1: 0
A2: Трубы | B2: Труба 15 ВГП | C2: Днище эллиптическое 57 | D2: Фланец 12820-80 Ду-15, Ру-1,6 МПа | E2: Болт М12х50 | F2: Прокладка паронитовая 15/16 | G2: Заглушка АТК Ду-15, Ру-1,6 МПа | H2: Лист стальной 4 мм | I2: Переход стальной 20х15 | J2: Отвод стальной 57 | K2: Фитинг стальной муфта 15 мм | L2: сетка нж 0,4 | M2: Диск 40 | N2: Кольцо 40 | O2: Пятка
A3: Днища | B3: Труба 20 ВГП | C3: Днище эллиптическое 76 | D3: Фланец 12820-80 Ду-20, Ру-1,6 МПа | E3: Болт М12х50 | F3: Прокладка паронитовая 20/16 | G3: Заглушка АТК Ду-20, Ру-1,6 МПа | H3: Лист стальной 6 мм | I3: Переход стальной 25х15 | J3: Отвод стальной 76 | K3: Фитинг стальной муфта 20 мм | L3: сетка нж 1,0 | M3: Диск 50 | N3: Кольцо 50 | O3: Проушина
A4: Фланцы | B4: Труба 25 ВГП | C4: Днище эллиптическое 89 | D4: Фланец 12820-80 Ду-25, Ру-1,6 МПа | E4: Болт М12х50 | F4: Прокладка паронитовая 25/16 | G4: Заглушка АТК Ду-25, Ру-1,6 МПа | H4: Лист стальной 14 мм | I4: Переход стальной 25х20 | J4: Отвод стальной 89 | K4: Фитинг стальной муфта 25 мм | L4: сетка нж 1,6 | M4: Диск 65 | N4: Кольцо 65 | O4: Штанга ФМ
A5: Крепеж | B5: Труба 32 ВГП | C5: Днище эллиптическое 108 | D5: Фланец 12820-80 Ду-32, Ру-1,6 МПа | E5: Болт М16х60 | F5: Прокладка паронитовая 32/16 | G5: Заглушка АТК Ду-32, Ру-1,6 МПа | H5: Лист стальной 20 мм | I5: Переход стальной 32х15 | J5: Отвод стальной 108 | K5: Фитинг стальной муфта 32 мм | L5: сетка нж 2,0 | M5: Диск 80 | N5: Кольцо 80 | O5: Проушина ФМ
A6: Прокладки | B6: Труба 40 ВГП | C6: Днище эллиптическое 133 | D6: Фланец 12820-80 Ду-40, Ру-1,6 МПа | E6: Болт М16х60 | F6: Прокладка паронитовая 40/16 | G6: Заглушка АТК Ду-40, Ру-1,6 МПа | I6: Переход стальной 32х20 | J6: Отвод стальной 133 | K6: Фитинг стальной муфта 40 мм | L6: сетка нж 5,0 | M6: Диск 100 | N6: Кольцо 100 | O6: Магнит 25х150
A7: АТК | B7: Труба 57х3 ГОСТ 10704-91 | C7: Днище эллиптическое 159 | D7: Фланец 12820-80 Ду-50, Ру-1,6 МПа | E7: Болт М16х80 | F7: Прокладка паронитовая 50/16 | G7: Заглушка АТК Ду-50, Ру-1,6 МПа | I7: Переход стальной 40х20 | J7: Отвод стальной 159 | K7: Фитинг стальной муфта 50 мм | M7: Диск 125 | N7: Кольцо 125
A8: Лист стальной | B8: Труба 76х3 ГОСТ 10704-91 | C8: Днище эллиптическое 219 | D8: Фланец 12820-80 Ду-65, Ру-1,6 МПа | E8: Болт М16х80 | F8: Прокладка паронитовая 65/16 | G8: Заглушка АТК Ду-65, Ру-1,6 МПа | I8: Переход стальной 40х25 | J8: Отвод стальной 219 | K8: Фитинг стальной резьба 15 мм | M8: Диск 150 | N8: Кольцо 150
A9: Переход | B9: Труба 89х3 ГОСТ 10704-91 | C9: Днище эллиптическое 273 | D9: Фланец 12820-80 Ду-80, Ру-1,6 МПа | E9: Болт М16х80 | F9: Прокладка паронитовая 80/16 | G9: Заглушка АТК Ду-80, Ру-1,6 МПа | I9: Переход стальной 40х32 | J9: Отвод стальной 273 | K9: Фитинг стальной резьба 20 мм | M9: Диск 200 | N9: Кольцо 200
A10: Отвод | B10: Труба 108х3,5 ГОСТ 10704-91 | C10: Днище эллиптическое 325 | D10: Фланец 12820-80 Ду-100, Ру-1,6 МПа | E10: Болт М16х80 | F10: Прокладка паронитовая 100/16 | G10: Заглушка АТК Ду-100, Ру-1,6 МПа | I10: Переход стальной 32х2-25х1,6 | J10: Отвод стальной 325 | K10: Фитинг стальной резьба 25 мм | M10: Диск 250 | N10: Кольцо 250
A11: Фитинг | B11: Труба 133х4 ГОСТ 10704-91 | C11: Днище эллиптическое 373 | D11: Фланец 12820-80 Ду-125, Ру-1,6 МПа | E11: Болт М16х80 | F11: Прокладка паронитовая 125/16 | G11: Заглушка АТК Ду-125, Ру-1,6 МПа | I11: Переход стальной 38х3-25х2 | J11: Отвод стальной 377 | K11: Фитинг стальной резьба 32 мм | M11: Диск 300 | N11: Кольцо 300
A12: Сетка | B12: Труба 159х4,5 ГОСТ 10704-91 | C12: Днище эллиптическое 426 | D12: Фланец 12820-80 Ду-150, Ру-1,6 МПа | E12: Болт М20х90 | F12: Прокладка паронитовая 150/16 | G12: Заглушка АТК Ду-150, Ру-1,6 МПа | I12: Переход стальной 38х3-32х2 | J12: Отвод стальной 426 | K12: Фитинг стальной резьба 40 мм | M12: Диск 400 | N12: Кольцо 400
A13: Диски | B13: Труба 219х5 ГОСТ 10704-91 | C13: Днище эллиптическое 530 | D13: Фланец 12820-80 Ду-200, Ру-1,6 МПа | E13: Болт М20х90 | F13: Прокладка паронитовая 200/16 | G13: Заглушка АТК Ду-200, Ру-1,6 МПа | I13: Переход стальной 45х2,5-25х1,6 | J13: Отвод стальной 530 | K13: Фитинг стальной резьба 50 мм | M13: Диск 500 | N13: Кольцо 500
A14: Кольца | B14: Труба 273х5 ГОСТ 10704-91 | C14: Днище эллиптическое 630 | D14: Фланец 12820-80 Ду-250, Ру-1,6 МПа | E14: Болт М24х100 | F14: Прокладка паронитовая 250/16 | G14: Заглушка АТК Ду-250, Ру-1,6 МПа | I14: Переход стальной 45х2,5-32(38)х2 | J14: Отвод стальной 630 | K14: Фитинг стальной пробка 32 мм | M14: Диск 600
A15: Прочее | B15: Труба 325х6 ГОСТ 10704-91 | C15: Днище эллиптическое 820 | D15: Фланец 12820-80 Ду-300, Ру-1,6 МПа | E15: Болт М24х100 | F15: Прокладка паронитовая 300/16 | G15: Заглушка АТК Ду-300, Ру-1,6 МПа | I15: Переход стальной 57х3-25х1,6
B16: Труба 377х6 ГОСТ 10704-91 | C16: Заглушка 57х3 | D16: Фланец 12820-80 Ду-350, Ру-1,6 МПа | E16: Болт М24х100 | F16: Прокладка паронитовая 350/16 | G16: Заглушка АТК Ду-350, Ру-1,6 МПа | I16: Переход стальной 57х3-32(38)х2
B17: Труба 426х6 ГОСТ 10705-91 | C17: Заглушка 76х3 | D17: Фланец 12820-80 Ду-400, Ру-1,6 МПа | E17: Болт М27х110 | F17: Прокладка паронитовая 400/16 | G17: Заглушка АТК Ду-400, Ру-1,6 МПа | I17: Переход стальной 57х3-45х2,5
B18: Труба 530х8 ГОСТ 10705-91 | C18: Заглушка 89х3,5 | D18: Фланец 12820-80 Ду-500, Ру-1,6 МПа | E18: Болт М30х130 | F18: Прокладка паронитовая 500/16 | G18: Заглушка АТК Ду-500, Ру-1,6 МПа | I18: Переход стальной 76х3,5-38х2,5
B19: Труба 630х10 ГОСТ 10705-92 | C19: Заглушка 108х3,5 | D19: Фланец 12820-80 Ду-600, Ру-1,6 МПа | E19: Болт М36х150 | F19: Прокладка паронитовая 600/16 | G19: Заглушка АТК Ду-600, Ру-1,6 МПа | I19: Переход стальной 76х3,5-45х2,5
B20: Труба 820х10 | C20: Заглушка 133х4 | D20: Фланец 12820-80 Ду-800, Ру-1,6 МПа | E20: Болт М36х150 | F20: Прокладка паронитовая 800/16 | G20: Заглушка АТК Ду-800, Ру-1,6 МПа | I20: Переход стальной 76х3,5-57х3
B21: Труба 6х1 нж | C21: Заглушка 159х4,5 | D21: Фланец 12820-80 Ду-900, Ру-1,6 МПа | E21: Гайка М12 | G21: Заглушка АТК Ду-200, Ру-2,5 МПа | I21: Переход стальной 89х3,5-45х2,5
B22: Труба 10х2 нж | C22: Заглушка 219х5 | D22: Фланец 12820-80 Ду-1000, Ру-1,6 МПа | E22: Гайка М16 | G22: Заглушка АТК Ду-300, Ру-2,5 МПа | I22: Переход стальной 89х3,5-57х3
B23: Труба профильная 30х20х2 | C23: Заглушка 273х6 | D23: Фланец 12820-80 Ду-15, Ру-2,5 МПа | E23: Гайка М20 | I23: Переход стальной 89х3,5-76х3,5
B24: Труба профильная 40х40х2 | C24: Заглушка 325х6 | D24: Фланец 12820-80 Ду-20, Ру-2,5 МПа | E24: Гайка М24 | I24: Переход стальной 108х4-57х3
B25: Труба профильная 50х50х2 | C25: Заглушка 426х8 | D25: Фланец 12820-80 Ду-25, Ру-2,5 МПа | E25: Гайка М27 | I25: Переход стальной 108х4-76х3,5
B26: Труба профильная 60х60х2 | C26: Заглушка 530х8 | D26: Фланец 12820-80 Ду-32, Ру-2,5 МПа | E26: Гайка М30 | I26: Переход стальной 108х4-89х3,5
B27: Труба профильная 80х80х3 | C27: Заглушка 630х10 | D27: Фланец 12820-80 Ду-40, Ру-2,5 МПа | E27: Гайка М36 | I27: Переход стальной 114х4-76х3,5
B28: Труба профильная 100х100х3 | C28: Днище 820x10 | D28: Фланец 12820-80 Ду-50, Ру-2,5 МПа | E28: Шайба М12 | I28: Переход стальной 133х4-57х3
D29: Фланец 12820-80 Ду-65, Ру-2,5 МПа | E29: Шайба М16 | I29: Переход стальной 133х5-76х3,5
D30: Фланец 12820-80 Ду-80, Ру-2,5 МПа | E30: Шайба М20 | I30: Переход стальной 133х5-89х3,5
D31: Фланец 12820-80 Ду-100, Ру-2,5 МПа | E31: Шайба М24 | I31: Переход стальной 133х5-108х4
D32: Фланец 12820-80 Ду-125, Ру-2,5 МПа | E32: Шайба М27 | I32: Переход стальной 159х4,5-57х3
D33: Фланец 12820-80 Ду-150, Ру-2,5 МПа | E33: Шайба М30 | I33: Переход стальной 159х4,5-76х3,5
D34: Фланец 12820-80 Ду-200, Ру-2,5 МПа | E34: Шайба М36 | I34: Переход стальной 159х4,5-89х3,5
D35: Фланец 12820-80 Ду-250, Ру-2,5 МПа | I35: Переход стальной 159х4,5-108х4
D36: Фланец 12820-80 Ду-300, Ру-2,5 МПа | I36: Переход стальной 159х4,5-133х4
D37: Фланец 12820-80 Ду-350, Ру-2,5 МПа | I37: Переход стальной 219х6-57х3
D38: Фланец 12820-80 Ду-400, Ру-2,5 МПа | I38: Переход стальной 219х6-76х3,5
D39: Фланец 12820-80 Ду-500, Ру-2,5 МПа | I39: Переход стальной 219х6-89х3,5
D40: Фланец 12820-80 Ду-600, Ру-2,5 МПа | I40: Переход стальной 219х6-108х4
D41: Фланец 12820-80 Ду-800, Ру-2,5 МПа | I41: Переход стальной 219х6-133х4
I42: Переход стальной 219х6-159х4,5
I43: Переход стальной 273х7-108х4
I44: Переход стальной 273х7-133х4
I45: Переход стальной 273х7-159х4,5
I46: Переход стальной 273x7-219х6
I47: Переход стальной 325х8-108х4
I48: Переход стальной 325х8-159х4,5
I49: Переход стальной 325х8-219х7
I50: Переход стальной 325х8-273х7
I51: Переход стальной 377х10-219х8
I52: Переход стальной 377х10-273х7
I53: Переход стальной 377х10-325х8
I54: Переход стальной 426х8(10)-219х8
I55: Переход стальной 426x8(10)-273x8
I56: Переход стальной 426x8(10)-325x8
I57: Переход стальной 426х10-377х10
I58: Переход стальной 530х10-325х8
I59: Переход стальной 530х12-426х10
I60: Переход стальной 530х12-377х10

Sheet Трубы
C3: кол-во | E3: цена ед. | F3: масса ед.
B5: Труба 15 ВГП | C5: 1 | D5: п.м. | E5: 40 | F5: 0.85
B6: Труба 20 ВГП | C6: 1 | D6: п.м. | E6: 65 | F6: 1.3
B7: Труба 25 ВГП | C7: 1 | D7: п.м. | E7: 75 | F7: 1.7
B8: Труба 32 ВГП | C8: 1 | D8: п.м. | E8: 100 | F8: 2.2
B9: Труба 40 ВГП | C9: 1 | D9: п.м. | E9: 125 | F9: 2.8
B11: Труба 57х3 ГОСТ 10704-91 | C11: 1 | D11: п.м. | E11: 165 | F11: 4
B12: Труба 76х3 ГОСТ 10704-91 | C12: 1 | D12: п.м. | E12: 225 | F12: 5.5
B13: Труба 89х3 ГОСТ 10704-91 | C13: 1 | D13: п.м. | E13: 300 | F13: 7.4
B14: Труба 108х3,5 ГОСТ 10704-91 | C14: 1 | D14: п.м. | E14: 400 | F14: 9.1
B15: Труба 133х4 ГОСТ 10704-91 | C15: 1 | D15: п.м. | E15: 565 | F15: 12.8
B16: Труба 159х4,5 ГОСТ 10704-91 | C16: 1 | D16: п.м. | E16: 750 | F16: 17.2
B17: Труба 219х5 ГОСТ 10704-91 | C17: 1 | D17: п.м. | E17: 1320 | F17: 26.5
B18: Труба 273х5 ГОСТ 10704-91 | C18: 1 | D18: п.м. | E18: 1625 | F18: 33.1
B19: Труба 325х6 ГОСТ 10704-91 | C19: 1 | D19: п.м. | E19: 2750 | F19: 47.5
B20: Труба 377х6 ГОСТ 10704-91 | C20: 1 | D20: п.м. | E20: 5125 | F20: 82.6
B21: Труба 426х6 ГОСТ 10705-91 | C21: 1 | D21: п.м. | E21: 5125 | F21: 82.6
B22: Труба 530х8 ГОСТ 10705-91 | C22: 1 | D22: п.м. | E22: 7375 | F22: 103.1
B23: Труба 630х10 ГОСТ 10705-92 | C23: 1 | D23: п.м. | E23: 13125 | F23: 153.1
B24: Труба820х10 | C24: 1 | D24: п.м. | E24: 20625 | F24: 199.9
B27: Труба 6х1 нж | C27: 1 | D27: п.м. | E27: 150 | F27: 0.15
B28: Труба 10х2 нж | C28: 1 | D28: п.м. | E28: 300 | F28: 0.4
B35: Труба | C35: стенка | D35: вес 1 п/м | E35: цена 1 п/м | F35: цена кг
A37: ВГП | B37: 15 | C37: 2.5 | D37: 0.85 | E37: =F37*D37*1.1 -> 29.92 | F37: 32
B38: 20 | C38: 3 | D38: 1.3 | E38: =F38*D38*1.1 -> 45.76 | F38: 32
B39: 25 | C39: 3 | D39: 1.7 | E39: 59.84 | F39: 32
B40: 32 | C40: 3 | D40: 2.2 | E40: 77.44 | F40: 32
B41: 40 | C41: 3 | D41: 2.8 | E41: 98.56 | F41: 32
A43: 10704-91, 10705-91 | B43: 57х3 | C43: 3 | D43: 4 | E43: =F43*D43 -> 128 | F43: 32
B44: 76х3 | C44: 3 | D44: 5.45 | E44: =F44*D44 -> 174.4 | F44: 32
B45: 89х3,5 | C45: 3.5 | D45: 7.4 | E45: 236.8 | F45: 32
B46: 108х3,5 | C46: 3.5 | D46: 9.1 | E46: 318.5 | F46: 35
B47: 133х4 | C47: 4 | D47: 12.75 | E47: 446.25 | F47: 35
B48: 159х4,5 | C48: 4.5 | D48: 17.2 | E48: 602 | F48: 35
B49: 219х5 | C49: 5 | D49: 26.5 | E49: 1033.5 | F49: 39
B50: 273х5 | C50: 5 | D50: 33.1 | E50: 1290.9 | F50: 39
B51: 325х6 | C51: 6 | D51: 47.5 | E51: 2137.5 | F51: 45
B52: 426х8 | C52: 8 | D52: 82.6 | E52: 4047.4 | F52: 49
B53: 530х8 | C53: 8 | D53: 103.1 | E53: 5876.7 | F53: 57
B54: 630х10 | C54: 10 | D54: 153.1 | E54: 10410.8 | F54: 68
C57: кол-во | E57: цена ед. | F57: масса ед.
B59: Труба профильная 30х20х2 | C59: 1 | D59: п.м. | E59: 45 | F59: 1.45
B60: Труба профильная 40х40х2 | C60: 1 | D60: п.м. | E60: 75 | F60: 2.4
B61: Труба профильная 50х50х2 | C61: 1 | D61: п.м. | E61: 95 | F61: 3.02
B62: Труба профильная 60х60х2 | C62: 1 | D62: п.м. | E62: 115 | F62: 3.65
B63: Труба профильная 80х80х3 | C63: 1 | D63: п.м. | E63: 230 | F63: 7.27
B64: Труба профильная 100х100х3 | C64: 1 | D64: п.м. | E64: 285 | F64: 9.16

Sheet Крепеж
A2: фланец | C2: кол-во | E2: цена ед. | F2: масса ед. | H2: фланец | J2: кол-во | L2: цена ед. | M2: масса ед.
A4: 15/16 | B4: Болт М12х50 | C4: 4 | D4: шт. | E4: 10 | F4: 0.062 | H4: 15/16 | I4: Болт М12х50 | J4: 4 | K4: шт. | L4: 10 | M4: 0.062
A5: 20/16 | B5: Болт М12х50 | C5: 4 | D5: шт. | E5: 10 | F5: 0.062 | I5: Гайка М12 | J5: 1 | K5: шт. | L5: 4 | M5: 0.0184
A6: 25/16 | B6: Болт М12х50 | C6: 4 | D6: шт. | E6: 10 | F6: 0.062 | I6: Шайба М12 | J6: 1 | K6: шт. | L6: 3 | M6: 0.0035
A7: 32/16 | B7: Болт М16х60 | C7: 4 | D7: шт. | E7: 23 | F7: 0.13
A8: 40/16 | B8: Болт М16х60 | C8: 4 | D8: шт. | E8: 23 | F8: 0.13 | H8: 20/16 | I8: Болт М12х50 | J8: 4 | K8: шт. | L8: 10 | M8: 0.062
A9: 50/16 | B9: Болт М16х80 | C9: 4 | D9: шт. | E9: 28 | F9: 0.17 | I9: Гайка М12 | J9: 1 | K9: шт. | L9: 4 | M9: 0.0184
A10: 65/16 | B10: Болт М16х80 | C10: 4 | D10: шт. | E10: 28 | F10: 0.17 | I10: Шайба М12 | J10: 1 | K10: шт. | L10: 3 | M10: 0.0035
A11: 80/16 | B11: Болт М16х80 | C11: 4 | D11: шт. | E11: 28 | F11: 0.17
A12: 100/16 | B12: Болт М16х80 | C12: 8 | D12: шт. | E12: 28 | F12: 0.17 | H12: 25/16 | I12: Болт М12х50 | J12: 4 | K12: шт. | L12: 10 | M12: 0.062
A13: 125/16 | B13: Болт М16х80 | C13: 8 | D13: шт. | E13: 28 | F13: 0.17 | I13: Гайка М12 | J13: 1 | K13: шт. | L13: 4 | M13: 0.0184
A14: 150/16 | B14: Болт М20х90 | C14: 8 | D14: шт. | E14: 47 | F14: 0.3 | I14: Шайба М12 | J14: 1 | K14: шт. | L14: 3 | M14: 0.0035
A15: 200/16 | B15: Болт М20х90 | C15: 12 | D15: шт. | E15: 47 | F15: 0.3
A16: 250/16 | B16: Болт М24х100 | C16: 12 | D16: шт. | E16: 73 | F16: 0.48 | H16: 32/16 | I16: Болт М16х60 | J16: 4 | K16: шт. | L16: 23 | M16: 0.13
A17: 300/16 | B17: Болт М24х100 | C17: 12 | D17: шт. | E17: 73 | F17: 0.48 | I17: Гайка М16 | J17: 1 | K17: шт. | L17: 8 | M17: 0.0376
A18: 350/16 | B18: Болт М24х100 | C18: 16 | D18: шт. | E18: 73 | F18: 0.48 | I18: Шайба М16 | J18: 1 | K18: шт. | L18: 5 | M18: 0.006
A19: 400/16 | B19: Болт М27х110 | C19: 16 | D19: шт. | E19: 115 | F19: 0.68
A20: 500/16 | B20: Болт М30х130 | C20: 20 | D20: шт. | E20: 140 | F20: 0.97 | H20: 40/16 | I20: Болт М16х60 | J20: 4 | K20: шт. | L20: 23 | M20: 0.13
A21: 600/16 | B21: Болт М36х150 | C21: 20 | D21: шт. | E21: 165 | F21: 1.64 | I21: Гайка М16 | J21: 1 | K21: шт. | L21: 8 | M21: 0.0376
A22: 800/16 | B22: Болт М36х150 | C22: 24 | D22: шт. | E22: 165 | F22: 1.64 | I22: Шайба М16 | J22: 1 | K22: шт. | L22: 5 | M22: 0.006
A23: 1000/16 | B23: Болт М42х180 | C23: 28 | D23: шт. | E23: 500
H24: 50/16 | I24: Болт М16х80 | J24: 4 | K24: шт. | L24: 28 | M24: 0.17
B25: Гайка М12 | C25: 1 | D25: шт. | E25: 4 | F25: 0.0184 | I25: Гайка М16 | J25: 1 | K25: шт. | L25: 8 | M25: 0.0376
B26: Гайка М16 | C26: 1 | D26: шт. | E26: 8 | F26: 0.0376 | I26: Шайба М16 | J26: 1 | K26: шт. | L26: 5 | M26: 0.006
B27: Гайка М20 | C27: 1 | D27: шт. | E27: 14 | F27: 0.0714
B28: Гайка М24 | C28: 1 | D28: шт. | E28: 25 | F28: 0.123 | H28: 65/16 | I28: Болт М16х80 | J28: 4 | K28: шт. | L28: 28 | M28: 0.17
B29: Гайка М27 | C29: 1 | D29: шт. | E29: 42 | F29: 0.176 | I29: Гайка М16 | J29: 1 | K29: шт. | L29: 8 | M29: 0.0376
B30: Гайка М30 | C30: 1 | D30: шт. | E30: 48 | F30: 0.243 | I30: Шайба М16 | J30: 1 | K30: шт. | L30: 5 | M30: 0.006
B31: Гайка М36 | C31: 1 | D31: шт. | E31: 95 | F31: 0.147
B32: Гайка М42 | C32: 1 | D32: шт. | E32: 125 | H32: 80/16 | I32: Болт М16х80 | J32: 4 | K32: шт. | L32: 28 | M32: 0.17 | N32: =(SUM(M32:M34))*4 -> 0.8544
I33: Гайка М16 | J33: 1 | K33: шт. | L33: 8 | M33: 0.0376
B34: Шайба М12 | C34: 1 | D34: шт. | E34: 3 | F34: 0.0035 | I34: Шайба М16 | J34: 1 | K34: шт. | L34: 5 | M34: 0.006
B35: Шайба М16 | C35: 1 | D35: шт. | E35: 5 | F35: 0.006
B36: Шайба М20 | C36: 1 | D36: шт. | E36: 7 | F36: 0.013 | H36: 100/16 | I36: Болт М16х80 | J36: 8 | K36: шт. | L36: 28 | M36: 0.17 | N36: =(SUM(M36:M38))*8 -> 1.7088
B37: Шайба М24 | C37: 1 | D37: шт. | E37: 9 | F37: 0.023 | I37: Гайка М16 | J37: 1 | K37: шт. | L37: 8 | M37: 0.0376
B38: Шайба М27 | C38: 1 | D38: шт. | E38: 10 | F38: 0.03 | I38: Шайба М16 | J38: 1 | K38: шт. | L38: 5 | M38: 0.006
B39: Шайба М30 | C39: 1 | D39: шт. | E39: 12 | F39: 0.04
B40: Шайба М36 | C40: 1 | D40: шт. | E40: 19 | F40: 0.071 | H40: 125/16 | I40: Болт М16х80 | J40: 8 | K40: шт. | L40: 28 | M40: 0.17
B41: Шайба М42 | C41: 1 | D41: шт. | E41: 25 | I41: Гайка М16 | J41: 1 | K41: шт. | L41: 8 | M41: 0.0376
I42: Шайба М16 | J42: 1 | K42: шт. | L42: 5 | M42: 0.006
H44: 150/16 | I44: Болт М20х90 | J44: 8 | K44: шт. | L44: 47 | M44: 0.3 | N44: =(SUM(M44:M46))*8 -> 3.0752
I45: Гайка М20 | J45: 1 | K45: шт. | L45: 14 | M45: 0.0714
I46: Шайба М20 | J46: 1 | K46: шт. | L46: 7 | M46: 0.013
H48: 200/16 | I48: Болт М20х90 | J48: 12 | K48: шт. | L48: 47 | M48: 0.3
I49: Гайка М20 | J49: 1 | K49: шт. | L49: 14 | M49: 0.0714
I50: Шайба М20 | J50: 1 | K50: шт. | L50: 7 | M50: 0.013
H52: 250/16 | I52: Болт М24х100 | J52: 12 | K52: шт. | L52: 73 | M52: 0.48
I53: Гайка М24 | J53: 1 | K53: шт. | L53: 25 | M53: 0.123
I54: Шайба М24 | J54: 1 | K54: шт. | L54: 9 | M54: 0.013
H56: 300/16 | I56: Болт М24х100 | J56: 12 | K56: шт. | L56: 73 | M56: 0.48
I57: Гайка М24 | J57: 1 | K57: шт. | L57: 25 | M57: 0.123
I58: Шайба М24 | J58: 1 | K58: шт. | L58: 9 | M58: 0.013
H60: 350/16 | I60: Болт М24х100 | J60: 16 | K60: шт. | L60: 73 | M60: 0.48
I61: Гайка М24 | J61: 1 | K61: шт. | L61: 25 | M61: 0.123
I62: Шайба М24 | J62: 1 | K62: шт. | L62: 9 | M62: 0.013
H64: 400/16 | I64: Болт М27х110 | J64: 16 | K64: шт. | L64: 115 | M64: 0.68
I65: Гайка М27 | J65: 1 | K65: шт. | L65: 42 | M65: 0.176
I66: Шайба М27 | J66: 1 | K66: шт. | L66: 10 | M66: 0.03
H68: 500/16 | I68: Болт М30х130 | J68: 20 | K68: шт. | L68: 140 | M68: 0.97
I69: Гайка М30 | J69: 1 | K69: шт. | L69: 48 | M69: 0.243
I70: Шайба М30 | J70: 1 | K70: шт. | L70: 12 | M70: 0.04
H72: 600/16 | I72: Болт М36х150 | J72: 20 | K72: шт. | L72: 165 | M72: 1.64
I73: Гайка М36 | J73: 1 | K73: шт. | L73: 95 | M73: 0.147
I74: Шайба М36 | J74: 1 | K74: шт. | L74: 19 | M74: 0.071
H76: 800/16 | I76: Болт М36х150 | J76: 24 | K76: шт. | L76: 165 | M76: 1.64
I77: Гайка М36 | J77: 1 | K77: шт. | L77: 95 | M77: 0.147
I78: Шайба М36 | J78: 1 | K78: шт. | L78: 19 | M78: 0.071
H80: 1000/16 | I80: Болт М42х180 | J80: 28 | K80: шт. | L80: 500
I81: Гайка М42 | J81: 1 | K81: шт. | L81: 125
I82: Шайба М42 | J82: 1 | K82: шт. | L82: 25

Sheet 32
A4: Тип | B4: Наименование | C4: кол-во | D4: ед.изм. | E4: цена ед. | F4: масса ед. | G4: сумма | H4: вес | I4: по сварке | J4: кол-во швов
A5: Трубы | B5: Труба 159х4,5 ГОСТ 10704-91 | C5: 1.2 | E5: 750 | F5: 17.2 | G5: 900 | H5: 20.64 | I5: 159 | J5: 5
A6: Днища | B6: Заглушка 159х4,5 | C6: 2 | E6: 185 | F6: 1.5 | G6: 370 | H6: 3 | I6: 0
A7: Трубы | B7: Труба 133х4 ГОСТ 10704-91 | C7: 9 | E7: 565 | F7: 12.8 | G7: 5085 | H7: 115.2 | I7: 133 | J7: 4
A8: Трубы | B8: Труба 15 ВГП | C8: 0.6 | E8: 40 | F8: 0.85 | G8: 24 | H8: 0.51 | I8: 20 | J8: 3
A9: Лист стальной | B9: Лист стальной 6 мм | C9: 5 | E9: 45 | F9: 1 | G9: 225 | H9: 5 | I9: 0
A10: Лист стальной | B10: Лист стальной 6 мм | C10: 4 | E10: 45 | F10: 1 | G10: 180 | H10: 4 | I10: 0
B12: Сварка | C12: резка | D12: итог | E12: +% | F12: продажа
B13: 4357.389011 | C13: 1089.347253 | D13: 12230.73626 | E13: 30 | F13: 15930

Sheet Лист6
A4: Тип | B4: Наименование | C4: кол-во | D4: ед.изм. | E4: цена ед. | F4: масса ед. | G4: сумма | H4: вес | I4: по сварке | J4: кол-во швов
A5: Трубы | B5: Труба 159х4,5 ГОСТ 10704-91 | C5: 1.2 | E5: 750 | F5: 17.2 | G5: 900 | H5: 20.64 | I5: 159 | J5: 5
A6: Днища | B6: Заглушка 159х4,5 | C6: 2 | E6: 185 | F6: 1.5 | G6: 370 | H6: 3 | I6: 0
A7: Трубы | B7: Труба 133х4 ГОСТ 10704-91 | C7: 9 | E7: 565 | F7: 12.8 | G7: 5085 | H7: 115.2 | I7: 133 | J7: 4
A8: Трубы | B8: Труба 15 ВГП | C8: 0.6 | E8: 40 | F8: 0.85 | G8: 24 | H8: 0.51 | I8: 20 | J8: 3
A9: Лист стальной | B9: Лист стальной 6 мм | C9: 5 | E9: 45 | F9: 1 | G9: 225 | H9: 5 | I9: 0
A10: Лист стальной | B10: Лист стальной 6 мм | C10: 4 | E10: 45 | F10: 1 | G10: 180 | H10: 4 | I10: 0
B12: Сварка | C12: резка | D12: итог | E12: +% | F12: продажа
B13: 4357.389011 | C13: 1089.347253 | D13: 12230.73626 | E13: 30 | F13: 15930
